bitfinex/quotes_ETHUSD_20251206
["timestamp","ask_amount","ask_price","bid_price","bid_amount"]
[1765027810476,5.97743227,3035.7,3035.6,0.05]
[1765027810746,6.80302638,3035.7,3035.6,0.05]
[1765027812613,7.79237929,3035.7,3035.6,0.05]
[1765027812818,7.69237929,3035.7,3035.6,0.05]
[1765027819653,7.79237929,3035.7,3035.6,0.05]
[1765027820073,8.31137929,3035.7,3035.6,0.05]
[1765027820744,8.21137929,3035.7,3035.6,0.05]
[1765027822890,7.64717929,3035.7,3035.6,0.05]
[1765027823087,4.02072725,3035.7,3035.6,0.5017]
[1765027823508,0.001,3035.7,3035.6,0.5017]
[1765027823788,0.001,3035.7,3035.6,0.9963]
[1765027831417,0.001,3035.7,3035.6,0.05]
[1765027831418,0.3458,3035.7,3035.6,0.05]
[1765027831816,0.001,3035.7,3035.6,0.05]
[1765027832016,0.001,3035.7,3035.6,0.5017]
[1765027832892,0.8088,3035.7,3035.6,0.05]
[1765027835123,4.10293314,3035.7,3035.6,0.05]
[1765027837924,3.64113314,3035.7,3035.6,0.05]
[1765027838120,4.97675937,3035.7,3035.6,0.05]
[1765027838327,5.49575937,3035.7,3035.6,0.05]
[1765027839800,5.59575937,3035.7,3035.6,0.05]
[1765027840324,5.49575937,3035.7,3035.6,0.05]
[1765027841127,5.59575937,3035.7,3035.6,0.05]
[1765027841698,5.49575937,3035.7,3035.6,0.05]
[1765027844636,5.69575937,3035.7,3035.6,0.05]
[1765027845364,5.59575937,3035.7,3035.6,0.05]
[1765027845663,5.69575937,3035.7,3035.6,0.05]
[1765027847362,6.42135348,3035.7,3035.6,0.05]
[1765027853131,6.82685748,3035.7,3035.6,0.05]
[1765027857959,12.51884348,3035.7,3035.6,0.05]
[1765027865344,34.12173848,3035.7,3035.6,0.05]
[1765027865547,31.44236648,3035.7,3035.6,0.05]
[1765027866570,31.69603348,3035.7,3035.6,0.05]
[1765027866763,30.97312348,3035.7,3035.6,0.05]
[1765027866961,29.96373548,3035.7,3035.6,0.05]
[1765027867505,31.16020748,3035.7,3035.6,0.05]
[1765027868074,0.1,3034.6,3034.3,0.001]
[1765027868272,1.15441067,3034.4,3034.3,0.001]
[1765027868773,1.15441067,3034.4,3034.3,0.4793]
[1765027868973,1.15441067,3034.4,3034.3,0.9407]
[1765027870301,4.44995509,3034.4,3034.3,0.9407]
[1765027871878,1.15441067,3034.4,3034.3,0.9407]
[1765027872610,4.44995509,3034.4,3034.3,0.9407]
[1765027873976,1.15441067,3034.5,3034.3,0.9407]
[1765027874188,1.13957877,3034.5,3034.4,0.9439]
[1765027875396,1.23957877,3034.5,3034.4,0.4825]
[1765027875582,1.23957877,3034.5,3034.4,0.9439]
[1765027875783,1.13957877,3034.5,3034.4,0.9439]
[1765027875988,4.43501459,3034.5,3034.4,0.9439]
[1765027877281,5.89481998,3034.5,3034.4,0.4825]
[1765027880618,5.79481998,3034.5,3034.4,0.4825]
[1765027881321,0.72559411,3034.4,3034.3,0.001]
[1765027881524,7.78701483,3034.4,3034.3,0.001]
[1765027881695,8.89640487,3034.4,3034.3,0.001]
[1765027882750,8.42280487,3034.4,3034.3,0.4835]
[1765027882956,2.55498415,3034.4,3034.3,0.4835]
[1765027883151,2.89238415,3034.4,3034.3,0.001]
[1765027883327,9.22780487,3034.4,3034.3,0.001]
[1765027883529,12.52334929,3034.4,3034.3,0.001]
[1765027884124,12.52334929,3034.4,3034.3,0.4835]
[1765027884125,6.08792857,3034.4,3034.3,0.4835]
[1765027884331,5.65052857,3034.4,3034.3,0.9449]
[1765027884752,4.43503127,3034.5,3034.3,0.9449]
[1765027884938,5.16062538,3034.5,3034.4,0.9439]
[1765027885122,4.02104661,3034.5,3034.4,0.9439]
[1765027885328,3.2954525,3034.5,3034.4,0.9439]
[1765027888382,4.44974793,3034.6,3034.4,0.9439]
[1765027888588,1.15441067,3034.8,3034.5,0.9439]
[1765027888773,1.15441067,3034.8,3034.7,0.4825]
[1765027889082,4.02061512,3034.9,3034.7,0.4825]
[1765027889283,4.02061512,3034.9,3034.8,0.9439]
[1765027889484,3.29502101,3034.9,3034.8,0.9439]
[1765027889968,1.15441067,3035.0,3034.8,0.9439]
[1765027889969,4.44934259,3035.0,3034.8,0.9439]
[1765027890169,4.44934259,3035.0,3034.9,0.9439]
[1765027890489,0.001,3035.8,3034.9,0.4825]
[1765027890691,3.29517029,3035.7,3035.6,0.4825]
[1765027891183,3.29517029,3035.7,3035.6,0.9439]
[1765027892189,0.001,3035.7,3035.6,0.9439]
[1765027901578,0.001,3035.7,3035.6,0.4825]
[1765027902012,0.4553,3035.7,3035.2,0.4677]
[1765027902185,0.4553,3035.7,3035.3,0.42824828]
[1765027902589,0.4553,3035.7,3035.4,0.4677]
[1765027903010,0.001,3035.7,3035.6,0.4792]
[1765027903610,0.001,3035.7,3035.1,3.29478283]
[1765027903611,0.5542,3035.7,3035.1,0.4677]
[1765027903792,1.15441067,3035.6,3035.1,0.4677]
[1765027905005,4.44871081,3035.6,3035.1,0.4677]
[1765027905201,4.44871081,3035.6,3035.5,0.4792]
[1765027905506,1.15441067,3035.6,3035.5,0.4792]
[1765027905921,0.001,3035.7,3035.5,0.9469]
[1765027906210,0.001,3035.7,3035.3,0.52]
[1765027906211,0.001,3035.7,3035.6,0.9469]
[1765027913001,0.001,3035.7,3035.6,10.10896238]
[1765027913213,0.001,3035.7,3035.6,6.14914527]
[1765027915717,0.001,3035.7,3035.6,12.01696599]
[1765027916925,0.001,3035.7,3035.6,6.14914527]
[1765027920624,0.001,3035.7,3035.6,6.18208768]
[1765027920938,0.001,3035.7,3035.6,6.14914527]
[1765027921236,0.001,3035.7,3035.6,6.28099594]
[1765027924337,0.001,3035.7,3035.6,7.16320684]
[1765027924715,0.001,3035.7,3035.6,5.29329594]
[1765027924919,0.001,3035.7,3035.6,6.29459594]
[1765027925810,0.001,3035.7,3035.6,1.86720361]
[1765027926009,0.001,3035.7,3035.6,4.77474166]
[1765027926819,0.001,3035.7,3035.6,0.9992]
[1765027928455,0.001,3035.7,3035.6,0.4792]
[1765027928609,0.4759,3035.7,3035.6,0.52]
[1765027929440,0.001,3035.7,3035.6,0.52]
[1765027930233,0.001,3035.7,3035.6,1.4524]
[1765027931141,0.001,3035.7,3035.6,0.9975]
[1765027931442,0.3101,3035.7,3035.6,0.52]
[1765027931812,0.001,3035.7,3035.6,0.9975]
[1765027940531,0.3119,3035.7,3035.6,0.52]
[1765027940725,0.8066,3035.7,3035.6,0.52]
[1765027941025,0.8066,3035.7,3035.1,3.29468826]
[1765027941225,0.0049,3035.5,3035.2,0.52]
[1765027941642,0.5034,3035.5,3035.2,0.52]
[1765027942641,0.3042,3035.3,3035.2,0.52]
[1765027943030,0.4985,3035.5,3035.2,0.52]
[1765027949655,0.4985,3035.5,3035.0,3.74978044]
[1765027949845,0.4985,3035.5,3035.3,0.52]
[1765027950258,0.3091,3035.4,3035.3,0.52]
[1765027952358,0.001,3035.7,3035.3,0.9975]
[1765027952557,0.001,3035.7,3035.6,0.4775]
[1765027952854,0.001,3035.7,3035.6,0.9324]
[1765027958961,0.001,3035.7,3035.6,4.22664166]
[1765027959144,0.001,3035.7,3035.6,4.64931339]
[1765027980584,0.001,3035.7,3035.6,4.19441339]
[1765027981100,0.001,3035.7,3035.6,4.68831339]
[1765027981386,0.001,3035.7,3035.6,4.19441339]
[1765027981756,0.001,3035.7,3035.6,4.68831339]
[1765027981960,0.8067,3035.7,3035.5,3.29433243]
[1765027982155,0.3415,3035.7,3035.6,3.29424166]
[1765027982366,0.001,3035.7,3035.6,3.81424166]
[1765027982582,0.4662,3035.7,3035.6,3.81424166]
[1765027982956,0.8067,3035.7,3035.6,3.81424166]
[1765027983491,0.001,3035.7,3035.6,4.28304166]
[1765027984461,0.001,3035.7,3035.6,4.77694166]
[1765027984660,0.001,3035.7,3035.6,5.6995198]
[1765027985588,0.3385,3035.7,3035.6,3.81424166]
[1765027986863,0.3385,3035.7,3035.5,3.29435018]
[1765027987063,0.3385,3035.7,3035.6,0.519]
[1765027987463,0.001,3035.7,3035.6,0.519]
[1765027987674,0.001,3035.7,3035.6,0.9878]
[1765027988061,0.001,3035.7,3035.6,1.4817]
[1765027988785,0.001,3035.7,3035.6,2.63611067]
[1765027989876,0.001,3035.7,3035.6,5.93035233]
[1765027993297,0.001,3035.7,3035.6,6.95496365]
[1765027994576,0.001,3035.7,3035.6,12.81416182]
[1765027995176,0.001,3035.7,3035.6,12.94601466]
[1765027996835,0.001,3035.7,3035.6,13.67160877]
[1765027997518,0.001,3035.7,3035.6,20.00753038]
[1765027997694,0.001,3035.7,3035.6,14.14833221]
[1765027998012,0.001,3035.7,3035.6,20.00753038]
[1765027998824,0.001,3035.7,3035.6,14.14833221]
[1765027998993,0.001,3035.7,3035.6,20.00753038]
[1765027999198,0.001,3035.7,3035.6,20.41303438]
[1765028002198,0.001,3035.7,3035.6,24.25303438]
[1765028006740,0.001,3035.7,3035.6,17.43651277]
[1765028006926,0.001,3035.7,3035.6,17.91711277]
[1765028007537,0.001,3035.7,3035.6,23.77631094]
[1765028014756,0.001,3035.7,3035.6,19.93631094]
[1765028017153,0.001,3035.7,3035.6,31.66333894]
[1765028019264,0.001,3035.7,3035.6,31.14433894]
[1765028019558,0.001,3035.7,3035.6,31.66333894]
[1765028020232,0.001,3036.1,3035.6,31.66333894]
[1765028020233,0.001,3036.1,3035.9,0.405504]
[1765028020436,0.001,3036.1,3036.0,21.17145835]
[1765028020623,0.001,3036.1,3036.0,23.76226579]
[1765028020824,0.001,3036.1,3036.0,23.89409039]
[1765028021365,0.001,3036.1,3036.0,27.18789803]
[1765028021570,0.001,3036.1,3036.0,24.43317903]
[1765028022479,0.001,3036.1,3036.0,22.36417903]
[1765028023075,0.001,3036.1,3036.0,21.38073003]
[1765028023377,0.8019,3036.1,3036.0,12.69247003]
[1765028023675,0.8019,3036.1,3036.0,4.67022635]
[1765028024870,0.8019,3036.1,3036.0,0.519]
[1765028026461,0.8019,3036.1,3035.7,3.29411606]
[1765028026657,0.188,3035.8,3035.6,3.29420085]
[1765028026861,0.1846,3035.8,3035.7,3.81313314]
[1765028027348,0.6454,3035.8,3035.7,3.81313314]
[1765028027548,0.9958,3035.8,3035.7,3.81313314]
[1765028027883,0.9958,3035.8,3035.3,0.72559411]
[1765028028067,0.4954,3035.7,3035.4,3.81338412]
[1765028028469,0.3161,3035.5,3035.4,3.81338412]
[1765028028888,0.8097,3035.5,3035.4,3.81338412]
[1765028030874,0.8097,3035.5,3035.3,4.02015116]
[1765028031050,0.4693,3035.4,3035.3,4.02015116]
[1765028031244,0.4693,3035.4,3035.3,4.53915116]
[1765028033060,0.4693,3035.4,3035.3,4.02015116]
[1765028033378,0.4693,3035.4,3035.0,3.29482635]
[1765028033679,0.4693,3035.4,3035.0,0.519]
[1765028033680,0.0083,3035.1,3035.0,0.519]
[1765028034043,0.4727,3035.1,3035.0,0.519]
[1765028036061,0.4727,3035.1,3035.0,3.81389291]
[1765028038185,0.0083,3035.1,3035.0,3.81389291]
[1765028038364,0.4644,3035.3,3035.0,3.81389291]
[1765028038569,0.3468,3035.1,3035.0,3.81389291]
[1765028041095,1.33901067,3035.8,3035.0,7.58388582]
[1765028041299,0.4644,3035.6,3035.1,5.85919817]
[1765028041902,0.3468,3035.2,3035.0,3.81389291]
[1765028042209,0.3468,3035.1,3035.0,3.81389291]
[1765028042615,0.8101,3035.1,3035.0,3.81389291]
[1765028045015,0.4633,3035.5,3035.0,4.28899291]
[1765028045173,0.4633,3035.5,3035.0,7.58388582]
[1765028047869,0.3479,3035.1,3035.0,0.519]
[1765028048293,0.81,3035.1,3035.0,0.519]
[1765028048902,0.81,3035.1,3035.0,3.81389291]
[1765028053207,0.484,3035.7,3035.0,4.29229291]
[1765028053515,0.484,3035.5,3035.0,7.58718582]
[1765028054013,0.484,3035.5,3035.1,5.85919817]
[1765028055807,0.484,3035.5,3035.2,3.2946758]
[1765028056712,0.3274,3035.3,3035.2,3.2946758]
[1765028057214,0.8098,3035.3,3035.2,3.2946758]
[1765028058010,0.8098,3035.3,3035.2,3.8136758]
[1765028058692,0.3274,3035.3,3035.2,3.8136758]
[1765028058893,0.4824,3035.6,3035.2,4.2920758]
[1765028059598,0.484,3035.6,3035.2,4.2920758]
[1765028059911,0.3274,3035.3,3035.2,3.8136758]
[1765028060116,0.3274,3035.3,3035.2,5.11068235]
[1765028062512,0.1846,3035.8,3035.2,9.33505815]
[1765028062707,0.1846,3035.8,3035.4,0.4784]
[1765028063421,0.6686,3035.8,3035.4,3.77277519]
[1765028064620,0.3274,3035.5,3035.4,3.29437519]
[1765028065415,0.3274,3035.5,3035.3,3.29456725]
[1765028065712,0.3274,3035.5,3035.3,4.83669064]
[1765028069126,0.1846,3035.8,3035.4,0.4784]
[1765028069333,0.484,3036.0,3035.6,0.4784]
[1765028069528,0.484,3036.0,3035.6,3.81322146]
[1765028069701,0.3221,3035.7,3035.6,3.81322146]
[1765028071030,0.3221,3035.7,3035.6,0.519]
[1765028072532,0.8045,3035.7,3035.6,0.519]
[1765028082829,0.4801,3035.9,3035.6,0.9823]
[1765028083034,0.4811,3036.1,3035.8,0.4633]
[1765028083530,0.4811,3036.1,3035.6,5.46304975]
[1765028084336,0.001,3036.1,3035.7,0.4954]
[1765028084724,0.6513,3035.8,3035.5,3.2943374]
[1765028085045,0.0034,3035.7,3035.6,0.519]
[1765028085240,0.4835,3035.7,3035.5,3.2943374]
[1765028085446,0.4835,3035.7,3035.6,0.519]
[1765028087649,0.4835,3035.7,3035.6,3.81324166]
[1765028087847,0.4835,3035.7,3035.6,3.29424166]
[1765028088144,0.001,3036.1,3035.6,8.72505317]
[1765028088348,0.4811,3036.1,3035.7,0.4633]
[1765028089047,0.4811,3036.1,3035.8,3.29402463]
[1765028090450,0.001,3036.1,3035.8,3.78942463]
[1765028090750,0.485,3036.1,3035.8,3.29402463]
[1765028090946,0.001,3036.1,3035.8,6.58804926]
[1765028091158,0.001,3036.1,3035.8,3.75202463]
[1765028093850,0.485,3036.1,3035.7,3.29409148]
[1765028094525,0.485,3036.1,3035.8,3.29402133]
[1765028096625,0.3308,3035.9,3035.7,3.29413314]
[1765028096859,0.3308,3035.9,3035.7,4.23200948]
[1765028098025,0.485,3036.1,3035.7,4.69000948]
[1765028099253,0.001,3036.1,3035.7,7.98414262]
[1765028099459,0.001,3036.1,3035.8,0.458]
[1765028100635,0.001,3036.1,3036.0,0.4772]
[1765028100822,0.001,3036.1,3036.0,0.9962]
[1765028101026,0.001,3036.1,3036.0,1.4542]
[1765028101350,0.001,3036.1,3036.0,4.74800764]
[1765028101549,0.001,3036.1,3036.0,5.6676499]
[1765028102327,0.8155,3036.1,3036.0,0.519]
[1765028102948,0.4632,3036.1,3036.0,0.519]
[1765028103153,0.8155,3036.1,3036.0,0.519]
[1765028103355,0.4632,3036.1,3036.0,0.519]
[1765028104051,0.001,3036.1,3036.0,4.29000764]
[1765028104242,0.001,3036.1,3036.0,5.55221064]
[1765028104764,0.001,3036.1,3036.0,5.68405001]
[1765028105330,0.001,3036.1,3036.0,6.08955401]
[1765028106359,0.001,3036.1,3036.0,18.74208776]
[1765028106528,0.001,3036.1,3036.0,15.80597576]
[1765028106860,0.001,3036.1,3036.0,16.53156987]
[1765028108543,0.001,3036.1,3036.0,37.27414487]
[1765028108742,0.001,3036.1,3036.0,36.30121487]
[1765028109656,0.001,3036.1,3036.0,37.24877387]
[1765028110633,0.001,3036.1,3036.0,37.27414487]
[1765028111660,0.001,3036.1,3036.0,7.27414487]
[1765028111964,0.001,3036.1,3036.0,37.27414487]
[1765028112136,0.001,3036.1,3036.0,41.11414487]
[1765028113173,0.001,3036.2,3036.0,39.50322687]
[1765028113372,0.002,3037.2,3036.7,6.99268707]
[1765028113581,0.002,3037.2,3036.7,7.99118707]
[1765028113752,0.002,3037.2,3036.7,11.88523137]
[1765028115467,0.002,3037.2,3036.7,6.02364241]
[1765028115789,0.002,3037.2,3036.7,11.88523137]
[1765028116066,0.002,3037.2,3036.7,13.53707193]
[1765028116267,0.002,3037.2,3036.7,43.89548854]
[1765028116466,0.002,3037.2,3036.7,45.94363719]
[1765028116768,0.002,3037.2,3036.7,39.30951419]
[1765028117072,0.002,3037.2,3036.7,34.45814019]
[1765028117386,0.002,3037.5,3037.3,0.5826]
[1765028117540,0.002,3037.5,3037.4,0.9985]
[1765028117740,0.002,3037.5,3037.4,1.4677]
[1765028117938,0.002,3037.5,3037.4,10.61181896]
[1765028118173,0.002,3037.5,3037.4,12.20875155]
[1765028119675,0.002,3037.5,3037.4,19.19167917]
[1765028119970,0.002,3037.5,3037.4,28.45404717]
[1765028120173,0.002,3037.5,3037.4,27.91404717]
[1765028120377,0.002,3037.5,3037.4,27.37404717]
[1765028120582,0.002,3037.5,3037.4,26.55619417]
[1765028120966,0.002,3037.5,3037.4,19.19167917]
[1765028121168,0.002,3037.5,3037.4,27.84121617]
[1765028121369,0.002,3037.5,3037.4,27.42021617]
[1765028122147,0.002,3037.5,3037.4,27.96121617]
[1765028122387,0.002,3037.5,3037.4,28.42021292]
[1765028122561,0.1812,3039.0,3037.5,12.40475211]
[1765028122765,0.4562,3038.9,3038.6,5.85182951]
[1765028122964,0.4562,3038.9,3038.7,0.519]
[1765028123283,0.4562,3038.9,3038.8,5.85182951]
[1765028123489,0.8097,3038.9,3038.8,6.83979119]
[1765028125070,0.8097,3038.9,3038.8,0.98796168]
[1765028126189,0.8097,3038.9,3038.7,0.519]
[1765028126355,0.4597,3038.8,3038.7,0.519]
[1765028130626,0.0035,3038.8,3038.7,0.519]
[1765028131104,0.4597,3038.8,3038.7,0.519]
[1765028131302,0.4562,3039.2,3038.7,4.76918084]
[1765028131514,0.4562,3039.2,3038.7,4.28938096]
[1765028131916,0.5347,3038.8,3038.7,0.519]
[1765028132299,0.9897,3038.8,3038.7,0.519]
[1765028132508,0.3375,3038.8,3038.7,3.80988096]
[1765028132707,0.3375,3038.8,3038.7,4.51997775]
[1765028133027,0.7925,3038.8,3038.7,4.51997775]
[1765028133320,0.3375,3038.8,3038.7,4.51997775]
[1765028133532,0.455,3039.0,3038.7,4.51997775]
[1765028133722,0.3387,3038.8,3038.7,4.51997775]
[1765028134539,0.3387,3038.8,3038.7,5.50791666]
[1765028135542,0.7949,3038.8,3038.7,5.50791666]
[1765028136753,0.7925,3038.8,3037.8,1.88000478]
[1765028136936,0.4607,3038.7,3038.1,3.291432]
[1765028137116,0.4607,3038.7,3038.3,3.29130416]
[1765028137316,0.4607,3038.7,3038.4,0.519]
[1765028137651,0.4562,3038.7,3038.4,0.519]
[1765028137812,0.3375,3038.5,3038.4,0.519]
[1765028138218,0.7925,3038.5,3038.4,0.519]
[1765028138840,0.7925,3038.5,3038.4,3.81020589]
[1765028139412,0.6614,3038.9,3038.4,3.81020589]
[1765028139819,0.4642,3038.8,3038.4,3.81020589]
[1765028140063,0.4642,3038.8,3038.5,0.71015013]
[1765028140550,0.3296,3038.6,3038.5,0.71015013]
[1765028140756,0.1972,3038.9,3038.6,3.29098927]
[1765028141052,0.6614,3038.9,3038.6,3.29098927]
[1765028141254,0.3296,3038.7,3038.6,3.29098927]
[1765028143317,0.3296,3038.7,3038.5,4.00120423]
[1765028143318,0.7924,3038.7,3038.5,4.00120423]
[1765028143511,0.3296,3038.7,3038.5,4.00120423]
[1765028144018,0.3296,3038.7,3038.6,0.56746149]
[1765028144217,0.4642,3038.7,3038.6,0.56746149]
[1765028144418,0.7938,3038.7,3038.5,4.98919494]
[1765028144742,0.0033,3038.6,3038.5,4.00122024]
[1765028145282,0.1972,3038.9,3038.5,4.00122024]
[1765028145416,0.6614,3038.9,3038.6,1.15441067]
[1765028145616,0.4593,3038.7,3038.6,1.15441067]
[1765028146123,0.1972,3038.9,3038.6,1.64121067]
[1765028146323,0.6614,3038.9,3038.6,1.64121067]
[1765028146964,0.4642,3038.9,3038.6,2.8007014]
[1765028147244,3.2901494,3039.4,3038.6,2.8007014]
[1765028147245,0.4642,3039.2,3038.7,3.29088096]
[1765028147448,0.4642,3039.1,3038.8,0.519]
[1765028147948,0.3371,3038.9,3038.8,0.519]
[1765028148157,0.3371,3038.9,3038.8,1.60499483]
[1765028148359,0.4642,3039.1,3038.8,1.60499483]
[1765028148656,0.4642,3039.1,3038.8,3.2462055]
[1765028149451,3.28994313,3039.6,3039.0,1.64121067]
[1765028149649,0.4642,3039.5,3039.0,1.64121067]
[1765028151672,0.4642,3039.5,3039.0,4.93173523]
[1765028151859,0.4642,3039.5,3039.0,2.78513007]
[1765028152475,0.4642,3039.5,3039.0,6.0756525]
[1765028152842,0.4529,3039.7,3039.2,1.15441067]
[1765028153043,4.27754107,3039.9,3039.5,0.4575]
[1765028153044,0.98788686,3039.9,3039.5,0.4575]
[1765028153389,1.44078686,3039.9,3039.3,1.67341067]
[1765028153685,0.4529,3039.9,3039.4,0.89634774]
[1765028153847,0.4529,3039.8,3039.4,4.18641348]
[1765028154237,0.189,3040.0,3039.4,4.18641348]
[1765028154440,0.3482,3039.5,3039.4,4.18641348]
[1765028154676,0.3482,3039.5,3039.4,1.88402319]
[1765028155554,0.3482,3039.5,3039.4,5.17414624]
[1765028157263,0.3482,3039.5,3039.4,0.89634774]
[1765028157468,0.4519,3039.7,3039.4,4.18647079]
[1765028157995,0.6419,3040.0,3039.6,0.4575]
[1765028158158,0.6419,3040.0,3039.7,0.519]
[1765028158696,0.3482,3039.8,3039.7,0.519]
[1765028160395,0.8001,3039.8,3039.7,0.519]
[1765028160560,0.189,3040.0,3039.7,0.519]
[1765028160759,0.3492,3039.8,3039.7,0.519]
[1765028161393,0.8,3039.8,3039.7,0.519]
[1765028166616,0.189,3040.0,3039.7,0.519]
[1765028166918,0.4504,3039.8,3039.7,0.519]
[1765028167629,0.8011,3039.8,3039.7,0.519]
[1765028167912,0.189,3040.0,3039.7,0.9765]
[1765028168048,0.354,3039.8,3039.7,0.519]
[1765028168250,0.354,3039.8,3039.7,1.06038797]
[1765028168458,0.8059,3039.8,3039.7,1.06038797]
[1765028169346,0.8059,3039.8,3039.7,0.519]
[1765028173641,0.354,3039.8,3039.7,0.519]
[1765028174469,0.8059,3039.8,3039.7,0.519]
[1765028174979,0.8059,3039.8,3039.7,3.80879833]
[1765028175144,0.8059,3039.8,3039.7,0.519]
[1765028177378,0.002,3040.0,3039.7,4.76558998]
[1765028177584,0.002,3040.0,3039.9,0.4769]
[1765028178178,0.002,3040.0,3039.9,4.24638189]
[1765028179588,0.002,3040.0,3039.9,4.65188589]
[1765028179879,0.002,3040.0,3039.9,4.7835365]
[1765028180045,0.002,3040.0,3039.9,6.34246412]
[1765028180853,0.002,3040.0,3039.9,7.09137079]
[1765028181070,0.002,3040.0,3039.9,7.61037079]
[1765028181378,0.002,3040.0,3039.9,7.88422418]
[1765028181589,0.002,3040.0,3039.9,8.01587609]
[1765028182072,0.002,3040.0,3039.9,7.13047209]
[1765028182447,0.002,3040.0,3039.9,7.61037209]
[1765028183246,0.002,3040.0,3039.9,8.7414702]
[1765028183977,0.002,3040.0,3039.9,7.18155553]
[1765028186155,0.002,3040.0,3039.9,7.58705953]
[1765028186477,0.002,3040.0,3039.9,8.01663961]
[1765028187361,0.002,3040.0,3039.9,7.58705953]
[1765028187864,0.002,3040.0,3039.9,8.01663961]
[1765028189694,0.002,3040.0,3039.9,15.69413661]
[1765028194793,0.002,3040.0,3039.9,38.37505622]
[1765028195692,0.002,3040.0,3039.9,35.97904622]
[1765028196684,0.002,3040.0,3039.9,38.37505622]
[1765028197672,0.002,3040.0,3039.9,8.37505622]
[1765028197875,0.002,3040.0,3039.9,29.54822522]
[1765028198075,0.002,3040.0,3039.9,29.06613722]
[1765028198398,3.28564533,3043.6,3041.0,0.405504]
[1765028198601,0.199,3041.9,3041.0,2.0086707]
[1765028198904,0.3205,3041.1,3041.0,2.0507707]
[1765028199197,0.3205,3041.1,3041.0,1.77687443]
[1765028199500,0.002,3041.1,3041.0,3.37177254]
[1765028200394,0.002,3041.1,3041.0,6.66016451]
[1765028200609,0.3219,3041.1,3041.0,4.66459381]
[1765028200780,0.7864,3041.1,3041.0,4.66459381]
[1765028201368,0.3219,3041.1,3041.0,4.66459381]
[1765028202096,0.3219,3041.1,3041.0,5.07009781]
[1765028202592,0.3219,3041.1,3041.0,4.66459381]
[1765028203294,0.7864,3041.1,3041.0,3.9389997]
[1765028203464,0.7864,3041.1,3041.0,0.519]
[1765028203893,0.7864,3041.1,3041.0,3.80739197]
[1765028204882,0.7864,3041.1,3041.0,0.519]
[1765028205194,0.7036634,3041.1,3041.0,0.519]
[1765028211201,0.7036634,3041.1,3040.8,3.28859299]
[1765028211414,0.1506,3041.0,3040.8,3.28859299]
[1765028211578,0.1584,3040.9,3040.8,3.28859299]
[1765028211781,0.6293,3040.9,3040.8,3.28859299]
[1765028211981,0.8247,3040.9,3040.8,3.28859299]
[1765028212477,0.002,3041.3,3040.7,3.28871641]
[1765028212678,0.4694,3041.2,3040.7,7.73184349]
[1765028212894,0.1674,3040.8,3040.7,4.44312708]
[1765028213473,0.6593,3040.8,3040.6,4.27719512]
[1765028213792,0.0049,3040.7,3040.6,3.80779512]
[1765028213985,0.5002,3040.7,3040.6,3.80779512]
[1765028215503,0.0049,3040.7,3040.6,3.80779512]
[1765028215811,0.5002,3040.7,3040.6,3.80779512]
[1765028216882,0.1624,3040.9,3040.6,7.58261969]
[1765028217083,0.6577,3040.9,3040.6,7.58261969]
[1765028217285,0.2473,3040.7,3040.6,3.80779512]
[1765028219608,0.7401,3040.7,3040.6,3.80779512]
[1765028220698,0.1624,3040.9,3040.6,4.29379512]
[1765028221217,0.6577,3040.9,3040.6,4.29379512]
[1765028221517,0.2473,3040.7,3040.6,3.80779512]
[1765028222316,0.7401,3040.7,3040.6,3.80779512]
[1765028222838,0.1624,3040.9,3040.6,7.09661969]
[1765028222987,0.6577,3040.9,3040.6,7.09661969]
[1765028223183,0.2473,3040.7,3040.6,3.80779512]
[1765028225439,0.7401,3040.7,3040.6,3.80779512]
[1765028227042,0.7401,3040.7,3040.6,0.519]
[1765028227453,0.7401,3040.7,3040.6,3.80782457]
[1765028229253,0.6901,3040.7,3040.6,3.80782457]
[1765028229455,0.1973,3040.7,3040.6,3.80782457]
[1765028230628,0.6901,3040.7,3040.6,0.519]
[1765028232049,0.6901,3040.7,3040.2,7.30410867]
[1765028232236,0.4954,3040.6,3040.3,0.519]
[1765028232642,0.1481,3040.4,3040.3,0.519]
[1765028234564,0.1481,3040.4,3040.3,3.80814909]
[1765028234729,0.1481,3040.4,3040.3,4.5337432]
[1765028234937,0.6401,3040.4,3040.3,4.5337432]
[1765028235549,0.1481,3040.4,3040.3,4.5337432]
[1765028236320,0.492,3040.6,3040.3,9.92458408]
[1765028236524,0.1624,3040.9,3040.6,3.28882457]
[1765028236821,0.4954,3041.1,3040.6,3.28882457]
[1765028237056,0.4954,3041.2,3040.6,3.28882457]
[1765028238252,0.4954,3041.2,3040.7,3.80770348]
[1765028239176,0.4954,3041.2,3040.8,1.15441067]
[1765028239350,0.002,3041.3,3040.8,0.477]
[1765028239663,0.4974,3041.3,3040.7,3.80770348]
[1765028240667,0.002,3041.3,3040.8,1.15406446]
[1765028240828,0.4974,3041.3,3040.8,1.15406446]
[1765028242556,0.4974,3041.3,3040.8,1.63106446]
[1765028242751,0.4974,3041.3,3040.9,3.28850011]
[1765028243155,0.4974,3041.3,3040.9,6.57700022]
[1765028243326,0.4974,3041.3,3040.9,7.56514775]
[1765028246062,0.1114,3041.0,3040.9,5.00224175]
[1765028246234,0.4974,3041.3,3040.9,8.29074186]
[1765028246960,0.4974,3041.3,3041.2,0.4713]
[1765028246961,0.002,3041.3,3041.2,0.4713]
[1765028247129,0.002,3041.3,3041.2,5.2237269]
[1765028247329,0.002,3041.3,3041.2,5.7007269]
[1765028247580,0.1134,3041.3,3040.9,3.28846059]
[1765028247868,0.1104,3041.0,3040.7,3.80769705]
[1765028248277,0.006,3040.8,3040.7,3.80769705]